fUST/lending_fUST_20250928
["ID","MTS","AMOUNT","RATE_DAILY","PERIOD"]
[388055125,1758994285118,-1913.8,0.00036712,9]
[388055126,1758994285127,-480.0,0.00036712,9]
[388055127,1758994285137,-2365.15,0.00036712,9]
[388055128,1758994285146,-1077.66,0.00036712,9]
[388055129,1758994285155,-3621.43,0.00036712,9]
[388055130,1758994285165,-480.0,0.00036712,9]
[388055131,1758994285174,-480.0,0.00036712,9]
[388055132,1758994285188,-480.0,0.00036712,9]
[388055133,1758994285197,-553.9531206,0.00036712,9]
[388055134,1758994285207,-569.51,0.00036712,9]
[388055135,1758994285216,-783.09,0.00036712,9]
[388055136,1758994285225,-494.68783006,0.00036712,9]
[388055137,1758994285234,-5851.91,0.00036712,9]
[388055138,1758994285243,-480.0,0.00036712,9]
[388055139,1758994285252,-3217.73,0.00036712,9]
[388055140,1758994285262,-1417.32,0.00036712,9]
[388055141,1758994285271,-2376.82,0.00036712,9]
[388055142,1758994285281,-785.41,0.00036712,9]
[388055143,1758994285297,-480.0,0.00036712,9]
[388055144,1758994285319,-480.0,0.00036712,9]
[388055145,1758994285336,-1530.06,0.00036712,9]
[388055146,1758994285355,-480.0,0.00036712,9]
[388055147,1758994285376,-480.0,0.00036712,9]
[388055148,1758994285394,-2125.03,0.00036712,9]
[388055149,1758994285412,-480.0,0.00036712,9]
[388055150,1758994285430,-480.0,0.00036712,9]
[388055151,1758994285446,-753.61,0.00036712,9]
[388055152,1758994285466,-662.5,0.00036712,9]
[388055153,1758994285485,-480.0,0.00036712,9]
[388055154,1758994285499,-480.0,0.00036712,9]
[388055155,1758994285516,-502.04763935,0.00036712,9]
[388055156,1758994285532,-480.0,0.00036712,9]
[388055157,1758994285549,-1721.27,0.00036712,9]
[388055158,1758994285567,-611.21,0.00036712,9]
[388055159,1758994285585,-637.19,0.00036712,9]
[388055160,1758994285599,-3545.61,0.00036712,9]
[388055161,1758994285617,-11763.28,0.00036712,9]
[388055162,1758994285634,-480.0,0.00036712,9]
[388055163,1758994285652,-1271.8,0.00036712,9]
[388055164,1758994285668,-1408.28,0.00036712,9]
[388055165,1758994285685,-11816.93,0.00036712,9]
[388055166,1758994285701,-2708.81,0.00036712,9]
[388055167,1758994285716,-3808.87,0.00036712,9]
[388055168,1758994285732,-480.0,0.00036712,9]
[388055169,1758994285749,-480.0,0.00036712,9]
[388055170,1758994285764,-3600.11,0.00036712,9]
[388055171,1758994285780,-720.5,0.00036712,9]
[388055172,1758994285795,-480.0,0.00036712,9]
[388055173,1758994285811,-480.0,0.00036712,9]
[388055174,1758994285826,-480.0,0.00036712,9]
[388055175,1758994285840,-480.0,0.00036712,9]
[388055176,1758994285854,-5256.05,0.00036712,9]
[388055177,1758994285870,-480.0,0.00036712,9]
[388055178,1758994285884,-480.0,0.00036712,9]
[388055179,1758994285900,-480.0,0.00036712,9]
[388055180,1758994285915,-480.0,0.00036712,9]
[388055181,1758994285929,-480.0,0.00036712,7]
[388055182,1758994285945,-1065.2,0.00036712,9]
[388055183,1758994285959,-7261.54,0.00036712,3]
[388055184,1758994285973,-480.0,0.00036712,9]
[388055185,1758994285990,-7281.49,0.00036712,9]
[388055186,1758994286004,-5503.8,0.00036712,9]
[388055187,1758994286019,-480.0,0.00036712,9]
[388055188,1758994286034,-4195.5,0.00036712,9]
[388055189,1758994286049,-480.0,0.00036712,9]
[388055190,1758994286064,-2557.08,0.00036712,9]
[388055191,1758994286078,-713.43,0.00036712,9]
[388055192,1758994286093,-595.32,0.00036712,9]
[388055193,1758994286108,-1395.04,0.00036712,9]
[388055194,1758994286123,-480.0,0.00036712,9]
[388055195,1758994286138,-1343.26,0.00036712,9]
[388055196,1758994286153,-627.11630538,0.00036712,9]
[388055197,1758994286168,-3339.87,0.00036712,9]
[388055198,1758994286182,-24192.44,0.00036712,9]
[388055199,1758994286196,-660.49,0.00036712,9]
[388055200,1758994286211,-480.0,0.00036712,9]
[388055201,1758994286225,-5132.79,0.00036712,9]
[388055202,1758994286240,-2250.62,0.00036712,9]
[388055203,1758994286254,-480.0,0.00036712,9]
[388055204,1758994286270,-348.5494669,0.00036712,9]
[388055205,1758994286283,-480.0,0.00036712,9]
[388055206,1758994286298,-501.78,0.00036712,9]
[388055207,1758994286313,-480.0,0.00036712,9]
[388055208,1758994286327,-4314.54,0.00036712,9]
[388055209,1758994286341,-3924.9,0.00036712,9]
[388055210,1758994286355,-557.99,0.00036712,9]
[388055211,1758994286371,-495.68284639,0.00036712,9]
[388055212,1758994286385,-910.08,0.00036712,9]
[388055213,1758994286400,-873.81,0.00036712,9]
[388055214,1758994286414,-5902.52,0.00036712,9]
[388055215,1758994286429,-1046.33,0.00036712,9]
[388055216,1758994286444,-655.62,0.00036712,9]
[388055217,1758994286458,-486.86,0.00036712,9]
[388055218,1758994286473,-480.0,0.00036712,9]
[388055219,1758994286487,-2948.89,0.00036712,9]
[388055220,1758994286501,-480.0,0.00036712,9]
[388055221,1758994286516,-318.44862675,0.00036712,9]
[388055222,1758994286530,-480.0,0.00036712,9]
[388055223,1758994286544,-1394.0,0.00036712,9]
[388055224,1758994286560,-781.94,0.00036712,9]
[388055225,1758994286727,-651.68,0.00036712,9]
[388055226,1758994286737,-608.92,0.00036712,9]
[388055227,1758994286746,-6660.0,0.00036712,9]
[388055228,1758994286756,-480.0,0.00036712,9]
[388055229,1758994286765,-480.0,0.00036712,9]
[388055230,1758994286775,-1000.0,0.00036712,9]
[388055231,1758994286784,-1085.98,0.00036712,9]
[388055232,1758994286793,-862.6,0.00036712,9]
[388055233,1758994286803,-423.19362821,0.00036712,9]
[388055234,1758994286812,-674.92,0.00036712,9]
[388055235,1758994286822,-480.0,0.00036712,9]
[388055236,1758994286832,-480.0,0.00036712,9]
[388055237,1758994286841,-2220.57,0.00036712,9]
[388055238,1758994286850,-566.96,0.00036712,9]
[388055239,1758994286859,-5679.9,0.00036712,9]
[388055240,1758994286869,-480.0,0.00036712,9]
[388055241,1758994286878,-480.0,0.00036712,9]
[388055242,1758994286888,-676.52,0.00036712,9]
[388055243,1758994286898,-535.04,0.00036712,9]
[388055244,1758994286907,-480.0,0.00036712,9]
[388055245,1758994286917,-480.0,0.00036712,9]
[388055246,1758994286926,-480.0,0.00036712,9]
[388055247,1758994286936,-480.0,0.00036712,9]
[388055248,1758994286945,-494.54853574,0.00036712,9]
[388055249,1758994286954,-480.0,0.00036712,9]
[388055250,1758994286964,-6540.42,0.00036712,9]
[388055251,1758994286973,-480.0,0.00036712,9]
[388055252,1758994286982,-480.0,0.00036712,9]
[388055253,1758994286991,-1430.6,0.00036712,9]
[388055254,1758994287001,-480.0,0.00036712,9]
[388055255,1758994287010,-3400.91,0.00036712,9]
[388055256,1758994287019,-480.0,0.00036712,9]
[388055257,1758994287028,-480.0,0.00036712,9]
[388055258,1758994287037,-1039.32,0.00036712,9]
[388055259,1758994287046,-480.0,0.00036712,9]
[388055260,1758994287055,-590.07,0.00036712,9]
[388055261,1758994287064,-2165.68,0.00036712,9]
[388055262,1758994287072,-585.9,0.00036712,9]
[388055263,1758994287082,-480.0,0.00036712,9]
[388055264,1758994287091,-8879.65,0.00036712,9]
[388055265,1758994287100,-480.0,0.00036712,9]
[388055266,1758994287109,-480.0,0.00036712,9]
[388055267,1758994287119,-480.0,0.00036712,9]
[388055268,1758994287128,-480.0,0.00036712,9]
[388055269,1758994287137,-12414.04,0.00036712,9]
[388055270,1758994287146,-1103.65,0.00036712,9]
[388055271,1758994287155,-11922.12,0.00036712,9]
[388055272,1758994287165,-480.0,0.00036712,9]
[388055273,1758994287174,-480.0,0.00036712,9]
[388055274,1758994287183,-500.0,0.00036712,9]
[388055275,1758994287192,-480.0,0.00036712,9]
[388055276,1758994287202,-2313.45,0.00036712,9]
[388055277,1758994287210,-480.0,0.00036712,9]
[388055278,1758994287219,-3440.58,0.00036712,9]
[388055279,1758994287229,-667.79,0.00036712,9]
[388055280,1758994287239,-480.0,0.00036712,9]
[388055281,1758994287251,-1943.98,0.00036712,9]
[388055282,1758994287261,-724.44,0.00036712,9]
[388055283,1758994287271,-480.0,0.00036712,9]
[388055284,1758994287281,-1351.09,0.00036712,9]
[388055285,1758994287290,-902.22,0.00036712,9]
[388055286,1758994287299,-859.97,0.00036712,9]
[388055287,1758994287308,-970.85,0.00036712,9]
[388055288,1758994287319,-652.35,0.00036712,9]
[388055289,1758994287329,-480.0,0.00036712,9]
[388055290,1758994287338,-480.0,0.00036712,9]
[388055291,1758994287348,-3231.52,0.00036712,9]
[388055292,1758994287357,-5847.17,0.00036712,9]
[388055293,1758994287367,-5233.48,0.00036712,9]
[388055294,1758994287376,-1579.73,0.00036712,9]
[388055295,1758994287385,-2534.52,0.00036712,9]
[388055296,1758994287394,-1399.8,0.00036712,9]
[388055297,1758994287403,-480.0,0.00036712,9]
[388055298,1758994287414,-509.81,0.00036712,9]
[388055299,1758994287424,-480.0,0.00036712,9]
[388055300,1758994287434,-480.0,0.00036712,9]
[388055301,1758994287443,-3280.61,0.00036712,9]
[388055302,1758994287452,-1717.88,0.00036712,9]
[388055303,1758994287462,-501.77,0.00036712,9]
[388055304,1758994287471,-1393.31,0.00036712,9]
[388055305,1758994287480,-480.0,0.00036712,9]
[388055306,1758994287489,-499.68759217,0.00036712,9]
[388055307,1758994287499,-480.0,0.00036712,9]
[388055308,1758994287508,-480.0,0.00036712,9]
[388055309,1758994287517,-4155.87,0.00036712,9]
[388055310,1758994287527,-480.0,0.00036712,9]
[388055311,1758994287536,-1668.27,0.00036712,9]
[388055312,1758994287546,-480.0,0.00036712,9]
[388055313,1758994287556,-480.0,0.00036712,9]
[388055314,1758994287565,-2258.02,0.00036712,9]
[388055315,1758994287575,-480.0,0.00036712,9]
[388055316,1758994287584,-1790.05,0.00036712,9]
[388055317,1758994287594,-480.0,0.00036712,9]
[388055318,1758994287615,-480.0,0.00036712,9]
[388055319,1758994287625,-480.0,0.00036712,9]
[388055320,1758994287635,-480.0,0.00036712,9]
[388055321,1758994287645,-1049.63,0.00036712,9]
[388055322,1758994287658,-4211.13,0.00036712,9]
[388055323,1758994287668,-972.4,0.00036712,9]
[388055324,1758994287678,-1822.75,0.00036712,9]
[388055325,1758994287687,-825.06,0.00036712,9]
[388055326,1758994287699,-1686.63,0.00036712,9]
[388055327,1758994287708,-480.0,0.00036712,9]
[388055328,1758994287718,-1363.95,0.00036712,9]
[388055329,1758994287729,-480.0,0.00036712,9]
[388055330,1758994287739,-480.0,0.00036712,9]
[388055331,1758994287749,-732.67,0.00036712,9]
[388055332,1758994287759,-481.53,0.00036712,9]
[388055333,1758994287768,-480.0,0.00036712,9]
[388055334,1758994287778,-480.0,0.00036712,9]
[388055335,1758994287788,-480.0,0.00036712,9]
[388055336,1758994287798,-480.0,0.00036712,9]
[388055337,1758994287807,-990.05,0.00036712,9]
[388055338,1758994287817,-480.0,0.00036712,9]
[388055339,1758994287827,-1605.12,0.00036712,9]
[388055340,1758994287837,-480.0,0.00036712,9]
[388055341,1758994287847,-480.0,0.00036712,9]
[388055342,1758994287856,-300.0,0.00036721,5]
[388055343,1758994287867,-463.0,0.00036746,5]
[388055344,1758994287877,-500.0,0.00036773,5]
[388055345,1758994287887,-1500.0,0.00036868,5]
[388055346,1758994287897,-1500.0,0.00036868,5]
[388055347,1758994287907,-1334.4640023,0.00036873,2]
[388055348,1758994287917,-720.0,0.00036897,30]
[388055349,1758994287927,-1500.0,0.00036968,5]
[388055350,1758994287938,-1500.0,0.00036968,5]
[388055351,1758994287947,-1500.0,0.00036968,5]
[388055352,1758994287958,-513.21733471,0.00036968,5]
[388055353,1758994287968,-1485.55660368,0.00036968,5]
[388055354,1758994287978,-1500.0,0.00036968,5]
[388055355,1758994287987,-1500.0,0.00036968,5]
[388055356,1758994287997,-1500.0,0.00036968,5]
[388055357,1758994288007,-1336.31243743,0.00036968,5]
[388055358,1758994288016,-1500.0,0.00036968,5]
[388055359,1758994288026,-1500.0,0.00036968,5]
[388055360,1758994288037,-1500.0,0.00036968,5]
[388055361,1758994288047,-350.0,0.00036968,5]
[388055362,1758994288057,-1500.0,0.00036968,5]
[388055363,1758994288067,-1500.0,0.00036968,5]
[388055364,1758994288077,-1500.0,0.00036968,5]
[388055365,1758994288087,-1500.0,0.00036968,5]
[388055366,1758994288097,-1500.0,0.00036968,5]
[388055367,1758994288107,-503.27584877,0.00036968,5]
[388055368,1758994288117,-1500.0,0.00036968,5]
[388055369,1758994288127,-1500.0,0.00036968,5]
[388055370,1758994288137,-1500.0,0.00036968,5]
[388055371,1758994288147,-1500.0,0.00036968,5]
[388055372,1758994288157,-1500.0,0.00036968,5]
[388055373,1758994288167,-480.0,0.00036986,9]
[388055374,1758994288176,-480.0,0.00036986,9]
[388055375,1758994288186,-1084.97,0.00036986,9]
[388055376,1758994288196,-480.0,0.00036986,9]
[388055377,1758994288206,-480.0,0.00036986,9]
[388055378,1758994288215,-480.0,0.00036986,9]
[388055379,1758994288225,-480.0,0.00036986,9]
[388055380,1758994288235,-480.0,0.00036986,9]
[388055381,1758994288245,-480.0,0.00036986,9]
[388055382,1758994288255,-480.0,0.00036986,9]
[388055383,1758994288264,-480.0,0.00036986,9]
[388055384,1758994288274,-742.65,0.00036986,9]
[388055385,1758994288283,-480.0,0.00036986,9]
[388055386,1758994288293,-480.0,0.00036986,9]
[388055387,1758994288302,-480.0,0.00036986,9]
[388055388,1758994288312,-520.66841503,0.00036986,9]
[388055389,1758994288321,-480.0,0.00036986,9]
[388055390,1758994288331,-480.0,0.00036986,9]
[388055391,1758994288340,-480.0,0.00036986,9]
[388055392,1758994288350,-480.0,0.00036986,9]
[388055393,1758994288359,-789.69,0.00036986,9]
[388055394,1758994288368,-480.0,0.00036986,9]
[388055395,1758994288378,-480.0,0.00036986,9]
[388055396,1758994288388,-480.0,0.00036986,9]
[388055397,1758994288398,-833.25,0.00036986,9]
[388055398,1758994288407,-480.0,0.00036986,9]
[388055399,1758994288417,-480.0,0.00036986,9]
[388055400,1758994288570,-507.12585587,0.00036986,9]
[388055401,1758994288580,-480.0,0.00036986,9]
[388055402,1758994288589,-480.0,0.00036986,9]
[388055403,1758994288599,-480.0,0.00036986,9]
[388055404,1758994288608,-793.85,0.00036986,9]
[388055405,1758994288618,-480.0,0.00036986,9]
[388055406,1758994288628,-480.0,0.00036986,9]
[388055407,1758994288637,-480.0,0.00036986,9]
[388055408,1758994288649,-480.0,0.00036986,9]
[388055409,1758994288662,-480.0,0.00036986,9]
[388055410,1758994288672,-480.0,0.00036986,9]
[388055411,1758994288682,-653.79,0.00036986,9]
[388055412,1758994288691,-488.4353937,0.00036986,9]
[388055413,1758994288701,-480.0,0.00036986,9]
[388055414,1758994288710,-579.13,0.00036986,9]
[388055415,1758994288719,-480.0,0.00036986,9]
[388055416,1758994288728,-480.0,0.00036986,9]
[388055417,1758994288738,-480.0,0.00036986,9]
[388055418,1758994288747,-620.25,0.00036986,9]
[388055419,1758994288757,-2059.03,0.00036986,9]
[388055420,1758994288766,-480.0,0.00036986,9]
[388055421,1758994288775,-1268.43,0.00036986,9]
[388055422,1758994288784,-480.0,0.00036986,9]
[388055423,1758994288794,-606.29,0.00036986,9]
[388055424,1758994288803,-480.0,0.00036986,9]
[388055425,1758994288812,-480.0,0.00036986,9]
[388055426,1758994288822,-1560.16,0.00036986,9]
[388055427,1758994288831,-1351.46,0.00036986,9]
[388055428,1758994288841,-516.73,0.00036986,9]
[388055429,1758994288851,-480.0,0.00036986,9]
[388055430,1758994288860,-283.16230585,0.00036986,9]
[388055431,1758994288869,-480.0,0.00036986,9]
[388055432,1758994288879,-1843.25,0.00036986,9]
[388055433,1758994288888,-842.63,0.00036986,9]
[388055434,1758994288897,-693.7,0.00036986,9]
[388055435,1758994288906,-1170.81,0.00036986,9]
[388055436,1758994288916,-480.0,0.00036986,9]
[388055437,1758994288926,-480.0,0.00036986,9]
[388055438,1758994288936,-519.15,0.00036986,9]
[388055439,1758994288946,-480.0,0.00036986,9]
[388055440,1758994288955,-551.54,0.00036986,9]
[388055441,1758994288964,-480.0,0.00036986,9]
[388055442,1758994288974,-480.0,0.00036986,9]
[388055443,1758994288983,-801.56,0.00036986,9]
[388055444,1758994288993,-480.0,0.00036986,9]
[388055445,1758994289002,-505.04639712,0.00036986,9]
[388055446,1758994289012,-480.0,0.00036986,9]
[388055447,1758994289022,-480.0,0.00036986,9]
[388055448,1758994289032,-611.79,0.00036986,9]
[388055449,1758994289044,-480.0,0.00036986,9]
[388055450,1758994289053,-176.53303437,0.00036986,9]
[388055451,1758994289063,-480.0,0.00036986,9]
[388055452,1758994289072,-480.0,0.00036986,9]
[388055453,1758994289086,-639.55,0.00036986,9]
[388055454,1758994289096,-480.0,0.00036986,9]
[388055455,1758994289105,-483.57544604,0.00036986,7]
[388055456,1758994289115,-480.0,0.00036986,9]
[388055457,1758994289124,-480.0,0.00036986,9]
[388055458,1758994289135,-480.0,0.00036986,9]
[388055459,1758994289144,-619.33,0.00036986,9]
[388055460,1758994289154,-480.0,0.00036986,9]
[388055461,1758994289165,-480.0,0.00036986,9]
[388055462,1758994289175,-480.0,0.00036986,9]
[388055463,1758994289184,-1155.59,0.00036986,9]
[388055464,1758994289194,-278.11854403,0.00036986,9]
[388055465,1758994289203,-480.0,0.00036986,9]
[388055466,1758994289214,-857.23,0.00036986,9]
[388055467,1758994289223,-498.42506298,0.00036986,9]
[388055468,1758994289232,-480.0,0.00036986,9]
[388055469,1758994289242,-480.0,0.00036986,9]
[388055470,1758994289252,-480.0,0.00036986,9]
[388055471,1758994289263,-480.0,0.00036986,9]
[388055472,1758994289273,-480.0,0.00036986,9]
[388055473,1758994289283,-480.0,0.00036986,9]
[388055474,1758994289293,-480.0,0.00036986,9]
[388055475,1758994289303,-480.0,0.00036986,9]
[388055476,1758994289313,-480.0,0.00036986,9]
[388055477,1758994289323,-480.0,0.00036986,9]
[388055478,1758994289332,-216.0410477,0.00036986,9]
[388055479,1758994289343,-480.0,0.00036986,9]
[388055480,1758994289352,-480.0,0.00036986,9]
[388055481,1758994289362,-988.57,0.00036986,9]
[388055482,1758994289371,-480.0,0.00036986,9]
[388055483,1758994289382,-480.0,0.00036986,9]
[388055484,1758994289392,-480.0,0.00036986,9]
[388055485,1758994289402,-480.0,0.00036986,9]
[388055486,1758994289412,-806.8,0.00036986,9]
[388055487,1758994289423,-480.0,0.00036986,9]
[388055488,1758994289432,-480.0,0.00036986,9]
[388055489,1758994289442,-480.0,0.00036986,9]
[388055490,1758994289451,-417.13549894,0.00036986,9]
[388055491,1758994289461,-728.19,0.00036986,9]
[388055492,1758994289471,-480.0,0.00036986,9]
[388055493,1758994289481,-1199.9,0.00036986,9]
[388055494,1758994289490,-521.83,0.00036986,9]
[388055495,1758994289500,-934.81,0.00036986,9]
[388055496,1758994289510,-176.67104335,0.00036986,9]
[388055497,1758994289522,-480.0,0.00036986,9]
[388055498,1758994289532,-671.16,0.00036986,9]
[388055499,1758994289542,-844.89,0.00036986,9]
[388055500,1758994289553,-585.40922801,0.00036986,9]
[388055501,1758994289563,-924.28,0.00036986,9]
[388055502,1758994289573,-480.0,0.00036986,9]
[388055503,1758994289583,-480.0,0.00036986,9]
[388055504,1758994289593,-1097.09,0.00036986,9]
[388055505,1758994289603,-480.0,0.00036986,7]
[388055506,1758994289612,-221.41565755,0.00036986,9]
[388055507,1758994289622,-1092.41,0.00036986,9]
[388055508,1758994289632,-541.61,0.00036986,9]
[388055509,1758994289642,-2302.64,0.00036986,9]
[388055510,1758994289657,-700.03,0.00036986,9]
[388055511,1758994289667,-1242.26,0.00036986,9]
[388055512,1758994289677,-480.0,0.00036986,9]
[388055513,1758994289687,-916.57,0.00036986,9]
[388055514,1758994289697,-437.0265189,0.00036986,9]
[388055515,1758994289707,-2930.19,0.00036986,9]
[388055516,1758994289717,-480.0,0.00036986,9]
[388055517,1758994289730,-480.0,0.00036986,9]
[388055518,1758994289739,-881.1,0.00036986,9]
[388055519,1758994289749,-369.09893209,0.00036986,3]
[388055520,1758994289759,-480.0,0.00036986,9]
[388055521,1758994289769,-480.0,0.00036986,9]
[388055522,1758994289778,-922.29,0.00036986,9]
[388055523,1758994289787,-480.0,0.00036986,9]
[388055524,1758994289797,-480.0,0.00036986,9]
[388055525,1758994289807,-480.0,0.00036986,9]
[388055526,1758994289816,-1075.35,0.00036986,9]
[388055527,1758994289826,-1002.1,0.00036986,9]
[388055528,1758994289835,-614.74,0.00036986,9]
[388055529,1758994289845,-480.0,0.00036986,9]
[388055530,1758994289855,-1314.53,0.00036986,9]
[388055531,1758994289865,-1647.96,0.00036986,9]
[388055532,1758994289874,-192.16899882,0.00036986,9]
[388055533,1758994289884,-480.0,0.00036986,9]
[388055534,1758994289893,-480.0,0.00036986,9]
[388055535,1758994289903,-480.0,0.00036986,9]
[388055536,1758994289913,-918.52,0.00036986,9]
[388055537,1758994289922,-541.29,0.00036986,9]
[388055538,1758994289931,-1637.11,0.00036986,9]
[388055539,1758994289943,-1000.0,0.00036986,9]
[388055540,1758994289954,-491.24797956,0.00036986,9]
[388055541,1758994289963,-480.0,0.00036986,9]
[388055542,1758994289973,-480.0,0.00036986,9]
[388055543,1758994289983,-1335.18,0.00036986,9]
[388055544,1758994289992,-531.39,0.00036986,9]
[388055545,1758994290001,-711.96,0.00036986,9]
[388055546,1758994290011,-480.0,0.00036986,9]
[388055547,1758994290021,-1092.25,0.00036986,9]
[388055548,1758994290030,-529.76169213,0.00036986,9]
[388055549,1758994290040,-480.0,0.00036986,9]
[388055550,1758994290050,-923.57,0.00036986,9]
[388055551,1758994290060,-480.0,0.00036986,9]
[388055552,1758994290070,-480.0,0.00036986,9]
[388055553,1758994290079,-480.0,0.00036986,9]
[388055554,1758994290088,-5451.79,0.00036986,9]
[388055555,1758994290099,-480.0,0.00036986,9]
[388055556,1758994290109,-1083.01,0.00036986,9]
[388055557,1758994290118,-1357.77,0.00036986,9]
[388055558,1758994290128,-488.68272642,0.00036986,9]
[388055559,1758994290137,-480.0,0.00036986,9]
[388055560,1758994290147,-1344.59,0.00036986,9]
[388055561,1758994290156,-480.0,0.00036986,9]
[388055562,1758994290165,-480.0,0.00036986,9]
[388055563,1758994290174,-2678.73,0.00036986,9]
[388055564,1758994290184,-480.0,0.00036986,9]
[388055565,1758994290193,-702.0,0.00036986,9]
[388055566,1758994290201,-480.0,0.00036986,9]
[388055567,1758994290211,-480.0,0.00036986,9]
[388055568,1758994290220,-480.0,0.00036986,9]
[388055569,1758994290229,-543.96,0.00036986,9]
[388055570,1758994290238,-480.0,0.00036986,9]
[388055571,1758994290247,-774.73,0.00036986,9]
[388055572,1758994290257,-506.26610988,0.00036986,9]
[388055573,1758994290267,-593.84,0.00036986,9]
[388055574,1758994290276,-480.0,0.00036986,9]
[388055575,1758994290286,-480.0,0.00036986,9]
[388055576,1758994290295,-1672.18,0.00036986,9]
[388055577,1758994290304,-3764.15,0.00036986,9]
[388055578,1758994290313,-824.17,0.00036986,9]
[388055579,1758994290323,-480.0,0.00036986,9]
[388055580,1758994290333,-480.0,0.00036986,9]
[388055581,1758994290343,-480.0,0.00036986,9]
[388055582,1758994290353,-1635.38,0.00036986,9]
[388055583,1758994290363,-480.0,0.00036986,9]
[388055584,1758994290373,-1641.95,0.00036986,9]
[388055585,1758994290383,-480.0,0.00036986,9]
[388055586,1758994290392,-480.0,0.00036986,9]
[388055587,1758994290410,-2067.34,0.00036986,9]
[388055588,1758994290421,-1427.52,0.00036986,9]
[388055589,1758994290432,-480.0,0.00036986,9]
[388055590,1758994290441,-480.0,0.00036986,9]
[388055591,1758994290451,-3405.97,0.00036986,9]
[388055592,1758994290462,-708.47,0.00036986,9]
[388055593,1758994290472,-634.2,0.00036986,9]
[388055594,1758994290482,-694.12,0.00036986,9]
[388055595,1758994290492,-2636.4,0.00036986,9]
[388055596,1758994290501,-480.0,0.00036986,9]
[388055597,1758994290511,-1654.9,0.00036986,9]
[388055598,1758994290521,-2287.25,0.00036986,9]
[388055599,1758994290531,-652.19,0.00036986,9]
[388055600,1758994290541,-480.0,0.00036986,9]
[388055601,1758994290551,-480.0,0.00036986,9]
[388055602,1758994290560,-3119.71,0.00036986,9]
[388055603,1758994290571,-480.0,0.00036986,9]
[388055604,1758994290580,-480.0,0.00036986,9]
[388055605,1758994290590,-318.40315913,0.00036986,9]
[388055606,1758994290600,-480.0,0.00036986,9]
[388055607,1758994290609,-487.8,0.00036986,9]
[388055608,1758994290619,-480.0,0.00036986,9]
[388055609,1758994290629,-1602.93,0.00036986,9]
[388055610,1758994290638,-1094.7,0.00036986,9]
[388055611,1758994290648,-509.65,0.00036986,9]
[388055612,1758994290662,-514.65,0.00036986,9]
[388055613,1758994290671,-480.0,0.00036986,9]
[388055614,1758994290681,-1950.93,0.00036986,9]
[388055615,1758994290691,-404.12599613,0.00036986,9]
[388055616,1758994290701,-553.38,0.00036986,9]
[388055617,1758994290711,-480.0,0.00036986,9]
[388055618,1758994290720,-480.0,0.00036986,9]
[388055619,1758994290730,-480.0,0.00036986,9]
[388055620,1758994290740,-480.0,0.00036986,9]
[388055621,1758994290749,-943.83,0.00036986,9]
[388055622,1758994290758,-480.0,0.00036986,9]
[388055623,1758994290767,-858.06,0.00036986,9]
[388055624,1758994290776,-480.0,0.00036986,9]